[Event "Titled Tuesday Blitz July 27 2021"]
[White "Gasanov, Zaur"]
[Black "Salinas Herrera, Pablo"]
[WhiteFideId "34125970"]
[BlackFideId "3407128"]
[WhiteElo "2099"]
[BlackElo "2541"]
[Result "0-1"]
[Round "03"]
[TimeControl "180+1"]
[Date "2021.07.27"]
[WhiteClock "0:00:01"]
[BlackClock "0:00:18"]

1. d4 {[%clk 0:03:00]}  d5 {[%clk 0:03:00]} 2. c4 {[%clk 0:03:00]}  e6 {[%clk 0:03:00]} 3. Nf3 {[%clk 0:02:59]}  a6 {[%clk 0:03:00]} 4. g3 {[%clk 0:02:56]}  dxc4 {[%clk 0:03:00]} 5. a4 {[%clk 0:02:56]}  Nc6 {[%clk 0:02:56]} 6. Bg2 {[%clk 0:02:56]}  Nf6 {[%clk 0:02:56]} 7. O-O {[%clk 0:02:55]}  Be7 {[%clk 0:02:57]} 8. Qc2 {[%clk 0:02:55]}  Na5 {[%clk 0:02:56]} 9. Bd2 {[%clk 0:02:45]}  Nb3 {[%clk 0:02:52]} 10. Ra2 {[%clk 0:02:45]}  Nxd4 {[%clk 0:02:50]} 11. Nxd4 {[%clk 0:02:46]}  Qxd4 {[%clk 0:02:50]} 12. Be3 {[%clk 0:02:45]}  Qd8 {[%clk 0:02:43]} 13. Qxc4 {[%clk 0:02:44]}  O-O {[%clk 0:02:40]} 14. Nc3 {[%clk 0:02:44]}  b5 {[%clk 0:02:09]} 15. Qd3 {[%clk 0:01:51]}  Qxd3 {[%clk 0:01:51]} 16. exd3 {[%clk 0:01:50]}  Rb8 {[%clk 0:01:49]} 17. Ba7 {[%clk 0:01:49]}  Bd7 {[%clk 0:01:02]} 18. Bxb8 {[%clk 0:01:47]}  Rxb8 {[%clk 0:01:03]} 19. axb5 {[%clk 0:01:44]}  axb5 {[%clk 0:01:03]} 20. Rfa1 {[%clk 0:01:35]}  g6 {[%clk 0:00:59]} 21. Ra8 {[%clk 0:01:34]}  Rxa8 {[%clk 0:00:59]} 22. Rxa8+ {[%clk 0:01:33]}  Kg7 {[%clk 0:00:59]} 23. Ra7 {[%clk 0:01:33]}  Bd6 {[%clk 0:00:52]} 24. Rb7 {[%clk 0:01:31]}  b4 {[%clk 0:00:39]} 25. Nb5 {[%clk 0:01:19]}  Bxb5 {[%clk 0:00:36]} 26. Rxb5 {[%clk 0:01:20]}  Nd7 {[%clk 0:00:36]} 27. Kf1 {[%clk 0:01:19]}  Kf6 {[%clk 0:00:35]} 28. d4 {[%clk 0:01:16]}  Ke7 {[%clk 0:00:35]} 29. Ke2 {[%clk 0:01:13]}  e5 {[%clk 0:00:34]} 30. dxe5 {[%clk 0:01:12]}  Nxe5 {[%clk 0:00:35]} 31. b3 {[%clk 0:01:08]}  Nd7 {[%clk 0:00:35]} 32. Bc6 {[%clk 0:00:51]}  Nb6 {[%clk 0:00:26]} 33. Kd3 {[%clk 0:00:46]}  h5 {[%clk 0:00:26]} 34. h4 {[%clk 0:00:44]}  Ke6 {[%clk 0:00:26]} 35. Bg2 {[%clk 0:00:42]}  Ke7 {[%clk 0:00:25]} 36. Ra5 {[%clk 0:00:38]}  Nd7 {[%clk 0:00:24]} 37. Ra1 {[%clk 0:00:37]}  Ne5+ {[%clk 0:00:24]} 38. Kd4 {[%clk 0:00:33]}  Ng4 {[%clk 0:00:24]} 39. Re1+ {[%clk 0:00:32]}  Kf6 {[%clk 0:00:25]} 40. f4 {[%clk 0:00:24]}  Nh6 {[%clk 0:00:24]} 41. Bh3 {[%clk 0:00:23]}  Ng8 {[%clk 0:00:22]} 42. Ke4 {[%clk 0:00:19]}  Ne7 {[%clk 0:00:22]} 43. Rd1 {[%clk 0:00:19]}  Nc6 {[%clk 0:00:22]} 44. Rc1 {[%clk 0:00:19]}  Na5 {[%clk 0:00:22]} 45. Rb1 {[%clk 0:00:18]}  Nc6 {[%clk 0:00:18]} 46. Bd7 {[%clk 0:00:17]}  Ne7 {[%clk 0:00:18]} 47. Rf1 {[%clk 0:00:15]}  Bc5 {[%clk 0:00:17]} 48. f5 {[%clk 0:00:15]}  g5 {[%clk 0:00:17]} 49. hxg5+ {[%clk 0:00:14]}  Kxg5 {[%clk 0:00:18]} 50. f6 {[%clk 0:00:15]}  Ng8 {[%clk 0:00:18]} 51. Rf5+ {[%clk 0:00:14]}  Kg6 {[%clk 0:00:18]} 52. Rxc5 {[%clk 0:00:12]}  Nxf6+ {[%clk 0:00:19]} 53. Kd4 {[%clk 0:00:13]}  Nxd7 {[%clk 0:00:20]} 54. Rxc7 {[%clk 0:00:13]}  Nf6 {[%clk 0:00:20]} 55. Rc6 {[%clk 0:00:13]}  Kf5 {[%clk 0:00:20]} 56. Kc4 {[%clk 0:00:13]}  Ne4 {[%clk 0:00:19]} 57. Kxb4 {[%clk 0:00:13]}  Nxg3 {[%clk 0:00:20]} 58. Kc4 {[%clk 0:00:10]}  Kg5 {[%clk 0:00:19]} 59. b4 {[%clk 0:00:10]}  h4 {[%clk 0:00:19]} 60. b5 {[%clk 0:00:08]}  h3 {[%clk 0:00:20]} 61. b6 {[%clk 0:00:07]}  h2 {[%clk 0:00:20]} 62. Rc5+ {[%clk 0:00:06]}  f5 {[%clk 0:00:19]} 63. b7 {[%clk 0:00:06]}  h1=Q {[%clk 0:00:19]} 64. b8=Q {[%clk 0:00:06]}  Qc1+ {[%clk 0:00:20]} 65. Kd5 {[%clk 0:00:06]}  Qd2+ {[%clk 0:00:19]} 66. Ke6 {[%clk 0:00:06]}  Qa2+ {[%clk 0:00:18]} 67. Rd5 {[%clk 0:00:05]}  Ne4 {[%clk 0:00:17]} 68. Qg8+ {[%clk 0:00:04]}  Kf4 {[%clk 0:00:18]} 69. Qf7 {[%clk 0:00:03]}  Ng5+ {[%clk 0:00:17]} 70. Kf6 {[%clk 0:00:01]}  Nxf7 {[%clk 0:00:18]} 0-1


[Site "https://www.chess.com"]

[Event "Titled Tuesday Blitz July 27 2021"]
[White "Goltsev, Dmitry"]
[Black "Sadovsky, Artem"]
[WhiteFideId "24176710"]
[BlackFideId "4155840"]
[WhiteElo "2366"]
[BlackElo "2442"]
[Result "1-0"]
[Round "03"]
[TimeControl "180+1"]
[Date "2021.07.27"]
[WhiteClock "0:01:44"]
[BlackClock "0:00:52"]

1. e4 {[%clk 0:02:59]}  g6 {[%clk 0:02:59]} 2. Nf3 {[%clk 0:03:00]}  Bg7 {[%clk 0:02:59]} 3. d4 {[%clk 0:03:00]}  d6 {[%clk 0:02:57]} 4. Nc3 {[%clk 0:02:59]}  e5 {[%clk 0:02:56]} 5. dxe5 {[%clk 0:02:59]}  dxe5 {[%clk 0:02:57]} 6. Qxd8+ {[%clk 0:02:58]}  Kxd8 {[%clk 0:02:58]} 7. Bc4 {[%clk 0:02:58]}  f6 {[%clk 0:02:58]} 8. h4 {[%clk 0:02:56]}  Bg4 {[%clk 0:02:44]} 9. Be3 {[%clk 0:02:39]}  c6 {[%clk 0:02:34]} 10. O-O-O {[%clk 0:02:35]}  Nd7 {[%clk 0:02:34]} 11. Rd2 {[%clk 0:02:26]}  Bxf3 {[%clk 0:02:10]} 12. gxf3 {[%clk 0:02:27]}  Kc7 {[%clk 0:02:02]} 13. Rhd1 {[%clk 0:02:26]}  Nb6 {[%clk 0:01:54]} 14. Na4 {[%clk 0:02:20]}  Bh6 {[%clk 0:00:58]} 15. Nxb6 {[%clk 0:01:49]}  axb6 {[%clk 0:00:52]} 16. Rd7+ {[%clk 0:01:47]}  Kb8 {[%clk 0:00:51]} 17. Rd8+ {[%clk 0:01:42]}  Ka7 {[%clk 0:00:51]} 18. Rxa8+ {[%clk 0:01:43]}  Kxa8 {[%clk 0:00:51]} 19. Rd8+ {[%clk 0:01:43]}  Ka7 {[%clk 0:00:52]} 20. Bxh6 {[%clk 0:01:44]} 1-0


[Site "https://www.chess.com"]

[Event "Titled Tuesday Blitz July 27 2021"]
[White "Indjic, Aleksandar"]
[Black "Madaminov, Mukhiddin"]
[WhiteFideId "911925"]
[BlackFideId "14210703"]
[WhiteElo "2643"]
[BlackElo "1747"]
[Result "1-0"]
[Round "03"]
[TimeControl "180+1"]
[Date "2021.07.27"]
[WhiteClock "0:01:19"]
[BlackClock "0:00:02"]

1. d4 {[%clk 0:03:00]}  Nf6 {[%clk 0:02:59]} 2. Nf3 {[%clk 0:03:00]}  e6 {[%clk 0:02:58]} 3. Bg5 {[%clk 0:03:00]}  c5 {[%clk 0:02:56]} 4. e3 {[%clk 0:02:58]}  Nc6 {[%clk 0:02:55]} 5. c3 {[%clk 0:02:55]}  h6 {[%clk 0:02:55]} 6. Bh4 {[%clk 0:02:55]}  b6 {[%clk 0:02:55]} 7. Nbd2 {[%clk 0:02:53]}  Bb7 {[%clk 0:02:56]} 8. Bd3 {[%clk 0:02:53]}  Be7 {[%clk 0:02:55]} 9. a3 {[%clk 0:02:52]}  O-O {[%clk 0:02:55]} 10. Qe2 {[%clk 0:02:51]}  d5 {[%clk 0:02:47]} 11. O-O {[%clk 0:02:41]}  Rc8 {[%clk 0:02:39]} 12. Rad1 {[%clk 0:02:25]}  Re8 {[%clk 0:02:09]} 13. Ne5 {[%clk 0:02:23]}  cxd4 {[%clk 0:01:55]} 14. exd4 {[%clk 0:02:17]}  Nxe5 {[%clk 0:01:55]} 15. dxe5 {[%clk 0:02:16]}  Nd7 {[%clk 0:01:55]} 16. Bxe7 {[%clk 0:02:13]}  Qxe7 {[%clk 0:01:56]} 17. Nf3 {[%clk 0:02:13]}  Nc5 {[%clk 0:01:51]} 18. Nd4 {[%clk 0:02:13]}  Nxd3 {[%clk 0:01:35]} 19. Qxd3 {[%clk 0:02:12]}  Qd7 {[%clk 0:01:35]} 20. Rfe1 {[%clk 0:02:12]}  Qa4 {[%clk 0:01:32]} 21. Re3 {[%clk 0:02:11]}  Ba6 {[%clk 0:01:30]} 22. Qd2 {[%clk 0:02:11]}  Rc7 {[%clk 0:01:16]} 23. Rde1 {[%clk 0:02:11]}  Qc4 {[%clk 0:01:07]} 24. Rg3 {[%clk 0:02:10]}  Kf8 {[%clk 0:01:05]} 25. h4 {[%clk 0:02:10]}  Rec8 {[%clk 0:01:05]} 26. Ree3 {[%clk 0:02:08]}  Qf1+ {[%clk 0:01:04]} 27. Kh2 {[%clk 0:02:07]}  Qb1 {[%clk 0:00:57]} 28. Ref3 {[%clk 0:02:07]}  Re7 {[%clk 0:00:52]} 29. Qf4 {[%clk 0:01:53]}  Rcc7 {[%clk 0:00:35]} 30. Rxg7 {[%clk 0:01:30]}  Kxg7 {[%clk 0:00:34]} 31. Qf6+ {[%clk 0:01:30]}  Kh7 {[%clk 0:00:27]} 32. Rg3 {[%clk 0:01:29]}  Qg6 {[%clk 0:00:27]} 33. Rxg6 {[%clk 0:01:29]}  fxg6 {[%clk 0:00:28]} 34. Nxe6 {[%clk 0:01:28]}  Rxe6 {[%clk 0:00:29]} 35. Qxe6 {[%clk 0:01:27]}  Bc4 {[%clk 0:00:30]} 36. Qd6 {[%clk 0:01:26]}  Rg7 {[%clk 0:00:22]} 37. e6 {[%clk 0:01:26]}  Bb5 {[%clk 0:00:22]} 38. Qxd5 {[%clk 0:01:24]}  Be8 {[%clk 0:00:22]} 39. Qe5 {[%clk 0:01:24]}  Re7 {[%clk 0:00:21]} 40. f4 {[%clk 0:01:23]}  h5 {[%clk 0:00:20]} 41. g4 {[%clk 0:01:22]}  hxg4 {[%clk 0:00:20]} 42. h5 {[%clk 0:01:22]}  gxh5 {[%clk 0:00:05]} 43. f5 {[%clk 0:01:22]}  h4 {[%clk 0:00:06]} 44. f6 {[%clk 0:01:22]}  g3+ {[%clk 0:00:07]} 45. Kh3 {[%clk 0:01:20]}  Rb7 {[%clk 0:00:03]} 46. Qe4+ {[%clk 0:01:19]}  Kh8 {[%clk 0:00:02]} 47. Qxb7 {[%clk 0:01:19]} 1-0


[Site "https://www.chess.com"]

[Event "Titled Tuesday Blitz July 27 2021"]
[White "Ismagilov, Damir"]
[Black "Paravyan, David"]
[WhiteFideId "34199982"]
[BlackFideId "4194985"]
[WhiteElo "2075"]
[BlackElo "2562"]
[Result "1/2-1/2"]
[Round "03"]
[TimeControl "180+1"]
[Date "2021.07.27"]
[WhiteClock "0:00:32"]
[BlackClock "0:00:02"]

1. d4 {[%clk 0:03:00]}  f5 {[%clk 0:02:57]} 2. c4 {[%clk 0:02:59]}  Nf6 {[%clk 0:02:58]} 3. Nc3 {[%clk 0:02:58]}  e6 {[%clk 0:02:58]} 4. Qc2 {[%clk 0:02:56]}  Bb4 {[%clk 0:02:52]} 5. e3 {[%clk 0:02:55]}  O-O {[%clk 0:02:51]} 6. Bd3 {[%clk 0:02:55]}  b6 {[%clk 0:02:51]} 7. Ne2 {[%clk 0:02:54]}  Bb7 {[%clk 0:02:50]} 8. f3 {[%clk 0:02:54]}  Bd6 {[%clk 0:02:45]} 9. O-O {[%clk 0:02:39]}  Nc6 {[%clk 0:02:45]} 10. a3 {[%clk 0:02:37]}  a6 {[%clk 0:02:30]} 11. b4 {[%clk 0:02:34]}  Qe8 {[%clk 0:02:27]} 12. c5 {[%clk 0:02:19]}  Be7 {[%clk 0:02:27]} 13. e4 {[%clk 0:02:15]}  bxc5 {[%clk 0:02:24]} 14. bxc5 {[%clk 0:02:15]}  e5 {[%clk 0:02:17]} 15. Qb3+ {[%clk 0:02:08]}  Kh8 {[%clk 0:00:45]} 16. Qxb7 {[%clk 0:02:07]}  exd4 {[%clk 0:00:42]} 17. Nd5 {[%clk 0:02:03]}  fxe4 {[%clk 0:00:20]} 18. Nxc7 {[%clk 0:01:51]}  Qc8 {[%clk 0:00:20]} 19. Bxa6 {[%clk 0:01:34]}  Qxb7 {[%clk 0:00:13]} 20. Bxb7 {[%clk 0:01:35]}  Ra7 {[%clk 0:00:11]} 21. Bxc6 {[%clk 0:01:35]}  d3 {[%clk 0:00:05]} 22. Nc3 {[%clk 0:01:28]}  Bxc5+ {[%clk 0:00:04]} 23. Kh1 {[%clk 0:01:28]}  e3 {[%clk 0:00:03]} 24. Bxe3 {[%clk 0:01:23]}  Bxe3 {[%clk 0:00:04]} 25. N7d5 {[%clk 0:01:21]}  Bd4 {[%clk 0:00:03]} 26. Nb5 {[%clk 0:01:13]}  dxc6 {[%clk 0:00:02]} 27. Nxa7 {[%clk 0:01:09]}  Bxa1 {[%clk 0:00:02]} 28. Nb4 {[%clk 0:00:51]}  Bb2 {[%clk 0:00:02]} 29. Nxd3 {[%clk 0:00:50]}  Bxa3 {[%clk 0:00:03]} 30. Nxc6 {[%clk 0:00:51]}  Bd6 {[%clk 0:00:04]} 31. Nce5 {[%clk 0:00:49]}  Kg8 {[%clk 0:00:04]} 32. Rd1 {[%clk 0:00:48]}  Re8 {[%clk 0:00:04]} 33. f4 {[%clk 0:00:47]}  Rd8 {[%clk 0:00:03]} 34. Nc5 {[%clk 0:00:44]}  Be7 {[%clk 0:00:02]} 35. Rxd8+ {[%clk 0:00:44]}  Bxd8 {[%clk 0:00:03]} 36. Ne6 {[%clk 0:00:45]}  Be7 {[%clk 0:00:04]} 37. g3 {[%clk 0:00:44]}  Bd6 {[%clk 0:00:04]} 38. Nc4 {[%clk 0:00:41]}  Be7 {[%clk 0:00:05]} 39. Kg2 {[%clk 0:00:41]}  Kf7 {[%clk 0:00:05]} 40. Ng5+ {[%clk 0:00:40]}  Kg6 {[%clk 0:00:06]} 41. Kf3 {[%clk 0:00:41]}  Nd7 {[%clk 0:00:05]} 42. Ne4 {[%clk 0:00:41]}  h5 {[%clk 0:00:03]} 43. h3 {[%clk 0:00:39]}  Kf7 {[%clk 0:00:03]} 44. g4 {[%clk 0:00:39]}  hxg4+ {[%clk 0:00:04]} 45. hxg4 {[%clk 0:00:40]}  g6 {[%clk 0:00:04]} 46. Ne5+ {[%clk 0:00:38]}  Nxe5+ {[%clk 0:00:04]} 47. fxe5 {[%clk 0:00:39]}  Ke6 {[%clk 0:00:02]} 48. Kf4 {[%clk 0:00:39]}  Kd5 {[%clk 0:00:02]} 49. Nf6+ {[%clk 0:00:35]}  Ke6 {[%clk 0:00:02]} 50. g5 {[%clk 0:00:34]}  Ba3 {[%clk 0:00:02]} 51. Ke4 {[%clk 0:00:35]}  Bc1 {[%clk 0:00:03]} 52. Ng4 {[%clk 0:00:35]}  Bxg5 {[%clk 0:00:03]} 53. Nf2 {[%clk 0:00:34]}  Bh6 {[%clk 0:00:03]} 54. Nh3 {[%clk 0:00:35]}  Bc1 {[%clk 0:00:03]} 55. Kf3 {[%clk 0:00:34]}  Kxe5 {[%clk 0:00:02]} 56. Kg4 {[%clk 0:00:35]}  Kf6 {[%clk 0:00:02]} 57. Nf2 {[%clk 0:00:35]}  Be3 {[%clk 0:00:02]} 58. Ne4+ {[%clk 0:00:35]}  Ke5 {[%clk 0:00:02]} 59. Ng5 {[%clk 0:00:34]}  Bc1 {[%clk 0:00:01]} 60. Nf3+ {[%clk 0:00:32]}  Kf6 {[%clk 0:00:02]} 61. Nh4 {[%clk 0:00:32]}  Bg5 {[%clk 0:00:02]} 62. Nxg6 {[%clk 0:00:32]} 1/2-1/2


[Site "https://www.chess.com"]

[Event "Titled Tuesday Blitz July 27 2021"]
[White "Le, Tuan Minh"]
[Black "Rodrigue-Lemieux, Shawn"]
[WhiteFideId "12401153"]
[BlackFideId "2620049"]
[WhiteElo "2450"]
[BlackElo "1763"]
[Result "1-0"]
[Round "03"]
[TimeControl "180+1"]
[Date "2021.07.27"]
[WhiteClock "0:00:03"]
[BlackClock "0:00:01"]

1. d4 {[%clk 0:03:00]}  Nf6 {[%clk 0:03:00]} 2. Nf3 {[%clk 0:03:00]}  d5 {[%clk 0:03:00]} 3. Bf4 {[%clk 0:03:00]}  c5 {[%clk 0:03:00]} 4. c3 {[%clk 0:03:00]}  Nc6 {[%clk 0:03:00]} 5. e3 {[%clk 0:03:01]}  Bg4 {[%clk 0:02:56]} 6. Qb3 {[%clk 0:03:01]}  Qc8 {[%clk 0:02:55]} 7. Ne5 {[%clk 0:03:00]}  Bd7 {[%clk 0:02:40]} 8. Nd2 {[%clk 0:02:58]}  e6 {[%clk 0:02:34]} 9. Ndf3 {[%clk 0:02:57]}  Be7 {[%clk 0:02:34]} 10. Be2 {[%clk 0:02:57]}  O-O {[%clk 0:02:34]} 11. O-O {[%clk 0:02:56]}  Ne4 {[%clk 0:02:33]} 12. Rfd1 {[%clk 0:02:54]}  Rd8 {[%clk 0:02:25]} 13. Rac1 {[%clk 0:02:32]}  Be8 {[%clk 0:02:20]} 14. h3 {[%clk 0:02:21]}  f6 {[%clk 0:02:17]} 15. Nxc6 {[%clk 0:02:17]}  bxc6 {[%clk 0:02:18]} 16. c4 {[%clk 0:02:15]}  cxd4 {[%clk 0:02:12]} 17. exd4 {[%clk 0:02:14]}  Qd7 {[%clk 0:02:05]} 18. Bd3 {[%clk 0:01:59]}  Bd6 {[%clk 0:02:02]} 19. Bxd6 {[%clk 0:01:48]}  Qxd6 {[%clk 0:02:03]} 20. cxd5 {[%clk 0:01:44]}  cxd5 {[%clk 0:01:55]} 21. Bxe4 {[%clk 0:01:23]}  dxe4 {[%clk 0:01:56]} 22. Nd2 {[%clk 0:01:24]}  Qxd4 {[%clk 0:01:49]} 23. Qxe6+ {[%clk 0:01:20]}  Bf7 {[%clk 0:01:49]} 24. Qxe4 {[%clk 0:01:20]}  Qxb2 {[%clk 0:01:47]} 25. Rc2 {[%clk 0:01:07]}  Qa3 {[%clk 0:01:34]} 26. Rdc1 {[%clk 0:00:51]}  Rab8 {[%clk 0:01:27]} 27. Nf3 {[%clk 0:00:43]}  Re8 {[%clk 0:01:10]} 28. Qf4 {[%clk 0:00:43]}  Rbd8 {[%clk 0:01:07]} 29. Rc7 {[%clk 0:00:35]}  Qxa2 {[%clk 0:01:05]} 30. Nh4 {[%clk 0:00:32]}  Qd2 {[%clk 0:00:41]} 31. Qxd2 {[%clk 0:00:26]}  Rxd2 {[%clk 0:00:42]} 32. Nf5 {[%clk 0:00:14]}  a5 {[%clk 0:00:39]} 33. Ra7 {[%clk 0:00:14]}  Bg6 {[%clk 0:00:28]} 34. Nxg7 {[%clk 0:00:11]}  Red8 {[%clk 0:00:23]} 35. Rcc7 {[%clk 0:00:08]}  a4 {[%clk 0:00:16]} 36. Ne6 {[%clk 0:00:07]}  Re8 {[%clk 0:00:15]} 37. Nf4 {[%clk 0:00:08]}  Bc2 {[%clk 0:00:10]} 38. Nh5 {[%clk 0:00:07]}  Rf8 {[%clk 0:00:08]} 39. g4 {[%clk 0:00:05]}  Bg6 {[%clk 0:00:08]} 40. Nf4 {[%clk 0:00:05]}  Be4 {[%clk 0:00:08]} 41. Re7 {[%clk 0:00:04]}  Bc2 {[%clk 0:00:08]} 42. Nh5 {[%clk 0:00:04]}  Bg6 {[%clk 0:00:07]} 43. Nf4 {[%clk 0:00:04]}  Bc2 {[%clk 0:00:07]} 44. h4 {[%clk 0:00:05]}  Rfd8 {[%clk 0:00:04]} 45. h5 {[%clk 0:00:04]}  Rf8 {[%clk 0:00:03]} 46. Ne6 {[%clk 0:00:03]}  Rb8 {[%clk 0:00:02]} 47. Nc5 {[%clk 0:00:03]}  Rc8 {[%clk 0:00:01]} 48. Nd7 {[%clk 0:00:03]} 1-0


[Site "https://www.chess.com"]

[Event "Titled Tuesday Blitz July 27 2021"]
[White "Mirzoev, Azer"]
[Black "Martinez Alcantara, Jose Eduardo"]
[WhiteFideId "13400304"]
[BlackFideId "3805662"]
[WhiteElo "2525"]
[BlackElo "2690"]
[Result "1/2-1/2"]
[Round "03"]
[TimeControl "180+1"]
[Date "2021.07.27"]
[WhiteClock "0:00:08"]
[BlackClock "0:00:10"]

1. d4 {[%clk 0:03:00]}  Nf6 {[%clk 0:02:55]} 2. Nf3 {[%clk 0:02:59]}  e6 {[%clk 0:02:55]} 3. c4 {[%clk 0:02:59]}  Bb4+ {[%clk 0:02:55]} 4. Bd2 {[%clk 0:02:59]}  Qe7 {[%clk 0:02:56]} 5. e3 {[%clk 0:02:59]}  Bxd2+ {[%clk 0:02:53]} 6. Qxd2 {[%clk 0:02:57]}  b6 {[%clk 0:02:53]} 7. Nc3 {[%clk 0:02:58]}  Bb7 {[%clk 0:02:54]} 8. Be2 {[%clk 0:02:59]}  O-O {[%clk 0:02:54]} 9. O-O {[%clk 0:02:59]}  d6 {[%clk 0:02:55]} 10. Qc2 {[%clk 0:02:57]}  Nbd7 {[%clk 0:02:55]} 11. Rfd1 {[%clk 0:02:56]}  c5 {[%clk 0:02:34]} 12. dxc5 {[%clk 0:02:51]}  Nxc5 {[%clk 0:02:15]} 13. Rac1 {[%clk 0:02:50]}  a6 {[%clk 0:02:10]} 14. b4 {[%clk 0:02:45]}  Nce4 {[%clk 0:02:10]} 15. Nxe4 {[%clk 0:02:46]}  Bxe4 {[%clk 0:02:07]} 16. Qb2 {[%clk 0:02:45]}  Rfc8 {[%clk 0:01:57]} 17. h3 {[%clk 0:02:42]}  h6 {[%clk 0:01:54]} 18. a3 {[%clk 0:02:41]}  Bb7 {[%clk 0:01:53]} 19. Qd4 {[%clk 0:02:40]}  Rc6 {[%clk 0:01:49]} 20. Nd2 {[%clk 0:02:34]}  Rac8 {[%clk 0:01:47]} 21. Bf3 {[%clk 0:01:55]}  d5 {[%clk 0:01:45]} 22. Qb2 {[%clk 0:01:53]}  R6c7 {[%clk 0:01:43]} 23. cxd5 {[%clk 0:01:52]}  Bxd5 {[%clk 0:01:43]} 24. Bxd5 {[%clk 0:01:21]}  Nxd5 {[%clk 0:01:40]} 25. Ne4 {[%clk 0:01:21]}  f5 {[%clk 0:01:30]} 26. Ng3 {[%clk 0:01:15]}  Nc3 {[%clk 0:01:23]} 27. Re1 {[%clk 0:01:15]}  Qf6 {[%clk 0:01:14]} 28. Kh1 {[%clk 0:00:51]}  Kh7 {[%clk 0:01:13]} 29. Rc2 {[%clk 0:00:39]}  Nd5 {[%clk 0:00:54]} 30. Qxf6 {[%clk 0:00:36]}  Nxf6 {[%clk 0:00:55]} 31. Rd2 {[%clk 0:00:33]}  h5 {[%clk 0:00:35]} 32. f3 {[%clk 0:00:29]}  Rc2 {[%clk 0:00:30]} 33. Rd6 {[%clk 0:00:16]}  R8c6 {[%clk 0:00:28]} 34. Rxc6 {[%clk 0:00:15]}  Rxc6 {[%clk 0:00:27]} 35. Ne2 {[%clk 0:00:15]}  e5 {[%clk 0:00:25]} 36. Rc1 {[%clk 0:00:15]}  Rd6 {[%clk 0:00:25]} 37. Kg1 {[%clk 0:00:13]}  Rd3 {[%clk 0:00:24]} 38. Rc3 {[%clk 0:00:13]}  Rd2 {[%clk 0:00:24]} 39. Ng3 {[%clk 0:00:11]}  f4 {[%clk 0:00:17]} 40. exf4 {[%clk 0:00:11]}  exf4 {[%clk 0:00:18]} 41. Ne4 {[%clk 0:00:11]}  Nxe4 {[%clk 0:00:12]} 42. fxe4 {[%clk 0:00:12]}  Ra2 {[%clk 0:00:11]} 43. e5 {[%clk 0:00:12]}  Kg6 {[%clk 0:00:11]} 44. Rc6+ {[%clk 0:00:12]}  Kf5 {[%clk 0:00:11]} 45. Rxb6 {[%clk 0:00:12]}  Rxa3 {[%clk 0:00:12]} 46. e6 {[%clk 0:00:12]}  Kf6 {[%clk 0:00:13]} 47. Kf2 {[%clk 0:00:11]}  g5 {[%clk 0:00:13]} 48. Rc6 {[%clk 0:00:11]}  g4 {[%clk 0:00:09]} 49. hxg4 {[%clk 0:00:11]}  hxg4 {[%clk 0:00:10]} 50. Rc4 {[%clk 0:00:11]}  Ra2+ {[%clk 0:00:08]} 51. Kf1 {[%clk 0:00:11]}  Ra1+ {[%clk 0:00:06]} 52. Kf2 {[%clk 0:00:11]}  Ra2+ {[%clk 0:00:07]} 53. Kf1 {[%clk 0:00:11]}  Kxe6 {[%clk 0:00:07]} 54. Rxf4 {[%clk 0:00:11]}  g3 {[%clk 0:00:08]} 55. Rf3 {[%clk 0:00:11]}  Ra1+ {[%clk 0:00:06]} 56. Ke2 {[%clk 0:00:11]}  Ra2+ {[%clk 0:00:07]} 57. Kf1 {[%clk 0:00:11]}  Kd5 {[%clk 0:00:06]} 58. Rxg3 {[%clk 0:00:11]}  Kc4 {[%clk 0:00:06]} 59. Rg4+ {[%clk 0:00:11]}  Kc3 {[%clk 0:00:06]} 60. g3 {[%clk 0:00:11]}  Rb2 {[%clk 0:00:06]} 61. Rg6 {[%clk 0:00:11]}  Ra2 {[%clk 0:00:07]} 62. g4 {[%clk 0:00:11]}  Kxb4 {[%clk 0:00:06]} 63. g5 {[%clk 0:00:10]}  Kc5 {[%clk 0:00:04]} 64. Rg8 {[%clk 0:00:11]}  Kd6 {[%clk 0:00:04]} 65. g6 {[%clk 0:00:10]}  Ke7 {[%clk 0:00:05]} 66. Ke1 {[%clk 0:00:11]}  Kf6 {[%clk 0:00:04]} 67. Kd1 {[%clk 0:00:11]}  Rg2 {[%clk 0:00:04]} 68. Ra8 {[%clk 0:00:10]}  Ra2 {[%clk 0:00:05]} 69. Rg8 {[%clk 0:00:09]}  a5 {[%clk 0:00:05]} 70. Kc1 {[%clk 0:00:09]}  Rg2 {[%clk 0:00:06]} 71. Ra8 {[%clk 0:00:08]}  Ra2 {[%clk 0:00:06]} 72. Ra6+ {[%clk 0:00:08]}  Kg7 {[%clk 0:00:06]} 73. Kb1 {[%clk 0:00:08]}  Ra4 {[%clk 0:00:05]} 74. Kb2 {[%clk 0:00:09]}  Rg4 {[%clk 0:00:06]} 75. Rxa5 {[%clk 0:00:08]}  Rxg6 {[%clk 0:00:07]} 76. Kb3 {[%clk 0:00:08]}  Kh6 {[%clk 0:00:08]} 77. Rb5 {[%clk 0:00:08]}  Rg5 {[%clk 0:00:09]} 78. Rxg5 {[%clk 0:00:08]}  Kxg5 {[%clk 0:00:10]} 1/2-1/2


[Site "https://www.chess.com"]

[Event "Titled Tuesday Blitz July 27 2021"]
[White "Moskalenko, Alexander"]
[Black "Potapova, Margarita"]
[WhiteFideId "4155351"]
[BlackFideId "14126869"]
[WhiteElo "2495"]
[BlackElo "2229"]
[Result "1-0"]
[Round "03"]
[TimeControl "180+1"]
[Date "2021.07.27"]
[WhiteClock "0:02:01"]
[BlackClock "0:00:46"]

1. c4 {[%clk 0:03:00]}  Nf6 {[%clk 0:02:59]} 2. Nc3 {[%clk 0:03:00]}  e6 {[%clk 0:02:51]} 3. d4 {[%clk 0:02:58]}  Bb4 {[%clk 0:02:50]} 4. Qc2 {[%clk 0:02:47]}  O-O {[%clk 0:02:50]} 5. a3 {[%clk 0:02:46]}  Bxc3+ {[%clk 0:02:50]} 6. Qxc3 {[%clk 0:02:47]}  d5 {[%clk 0:02:50]} 7. Bg5 {[%clk 0:02:45]}  h6 {[%clk 0:02:43]} 8. Bh4 {[%clk 0:02:43]}  c5 {[%clk 0:02:26]} 9. dxc5 {[%clk 0:02:32]}  d4 {[%clk 0:02:21]} 10. Qc2 {[%clk 0:02:32]}  g5 {[%clk 0:02:20]} 11. Bg3 {[%clk 0:02:31]}  Nc6 {[%clk 0:02:20]} 12. O-O-O {[%clk 0:02:28]}  Qa5 {[%clk 0:02:14]} 13. Bd6 {[%clk 0:02:28]}  Re8 {[%clk 0:02:04]} 14. Nf3 {[%clk 0:02:28]}  e5 {[%clk 0:01:53]} 15. e3 {[%clk 0:02:28]}  d3 {[%clk 0:01:48]} 16. Bxd3 {[%clk 0:02:21]}  e4 {[%clk 0:01:48]} 17. Be2 {[%clk 0:02:21]}  exf3 {[%clk 0:01:47]} 18. gxf3 {[%clk 0:02:22]}  Ne7 {[%clk 0:01:24]} 19. h4 {[%clk 0:02:14]}  Bf5 {[%clk 0:01:19]} 20. e4 {[%clk 0:02:14]}  Bg6 {[%clk 0:01:18]} 21. hxg5 {[%clk 0:02:14]}  hxg5 {[%clk 0:01:18]} 22. Be5 {[%clk 0:02:10]}  Ned5 {[%clk 0:00:59]} 23. Bd4 {[%clk 0:02:05]}  Nxe4 {[%clk 0:00:46]} 24. Rh8# {[%clk 0:02:01]} 1-0


[Site "https://www.chess.com"]